Cogmind - Beta 10 X2 @@@ ROGUE MODE // 2020.07.20 @ 21:20:59 Player: tourn Result: Destroyed by X-82 Rainmaker via exploding Antimatter Diverter Performance ------------- Evolutions (7) 3500 Regions Visited (19) 3800 Robots Destroyed (285) 1425 Value Destroyed (12628) 12628 Prototype IDs (53) 1060 Alien Tech Used (0) 0 Bonus (2738) 2738 TOTAL SCORE: 25151 Bonus ------- Triggered Max Security 1000 High Alert Combat Kills 1005 Follower Combat Kills 263 Network Hubs Disabled 200 Aligned with FarCom 300 Friendly Fire -30 Cogmind --------- Core Integrity 0/1300 Matter 126/300 Energy 1085/1100 System Corruption 20% Temperature Cool (0) Movement Core (100) Ox1 Location -3/Testing Parts ------- > --- POWER (3) -------- (None) > --- PROPULSION (5) --- (None) > --- UTILITY (10) ----- Experimental Energy Well > --- WEAPON (3) ------- Power Sword > --- INVENTORY (4) ---- Matter Compressor (44) EMDS Peak State ------------ > --- POWER ------------ Micro Fission Core Micro Fission Core Light Antimatter Reactor > --- PROPULSION ------- Flexi-carbon Leg Flexi-carbon Leg Myomer Leg Myomer Leg Experimental Flexi-carbon Leg > --- UTILITY ---------- Advanced Heat Sink Medium Storage Unit Medium Storage Unit Advanced Terrain Scan Processor Experimental Targeting Computer Advanced Target Analyzer Advanced Core Analyzer Improved Weapon Cycler Improved Weapon Cycler EM Dispersion Field > --- WEAPON ----------- Compact Mass Driver Omega Cannon > --- INVENTORY -------- Flexi-carbon Leg Small Battery Matter Compressor Gamma Rifle Gamma Rifle EMDS Coil Gun Heavy Machine Gun Railgun Helical Railgun Neutron Missile Launcher [Rating: 147] Favorites ----------- Power Micro Fission Core Engine Angular Momentum Engine Power Core Micro Fission Core Reactor Quantum Reactor Propulsion Improved Titanium Leg Treads Armored Medium Treads Leg Improved Titanium Leg Wheel Armored Huge Wheel Hover Unit Cooled Aerolev Unit Flight Unit Nuclear Pulse Array Utility Large Storage Unit Device Advanced Heat Sink Storage Large Storage Unit Processor Advanced Visual Processing Unit Hackware Advanced Hacking Suite Protection Improved Light Armor Plating Weapon HERF Cannon Energy Gun Heavy EM Pulse Gun Energy Cannon HERF Cannon Ballistic Gun Improved KE Penetrator Ballistic Cannon Compact Mass Driver Launcher Improved Proton Missile Launcher Special Weapon Advanced Remote Datajack Slashing Weapon Greatsword Piercing Weapon Spear Build | -11 -10 -10 -9 -9 -9 -8 -8 -7 -6 -6 -6 -5 -4 -4 -4 -4 -4 -3 -3 ------- Run | Scr Mat Min Mat Min Exi Min Mat Fac Fac Was Fac Fac Fac Ext Cet Arc Hub Res Tes Slots Evolved 14 | . . . 2 . . . 2 2 2 . . 2 2 . . . . 2 . Power 2 | . . . . . . . . . . . . . 1 . . . . 1 . Propulsion 3 | . . . . . . . 1 . . . . 1 . . . . . 1 . Utility 8 | . . . 2 . . . 1 2 2 . . 1 . . . . . . . Weapon 1 | . . . . . . . . . . . . . 1 . . . . . . Parts Attached 414 | . 7 2 36 5 . . 13 33 38 5 40 41 33 26 17 . 34 65 19 Power 45 | . 1 1 3 1 . . . 3 2 . 2 2 6 4 4 . 2 13 1 Engine 14 | . 1 1 2 . . . . 3 1 . 1 1 1 . . . . 3 . Core 17 | . . . 1 1 . . . . 1 . 1 1 5 2 1 . . 3 1 Reactor 14 | . . . . . . . . . . . . . . 2 3 . 2 7 . Propulsion 74 | . . . 8 1 . . 2 6 5 3 8 10 1 5 2 . 6 14 3 Treads 21 | . . . . . . . . . . . . 4 1 4 2 . 3 7 . Leg 34 | . . . 8 1 . . 2 6 5 2 . . . . . . 2 5 3 Wheel 3 | . . . . . . . . . . . . 1 . 1 . . 1 . . Hover 13 | . . . . . . . . . . 1 8 2 . . . . . 2 . Flight 3 | . . . . . . . . . . . . 3 . . . . . . . Utility 145 | . 3 . 9 1 . . 3 11 8 2 24 22 12 9 5 . 12 20 4 Device 46 | . . . 1 . . . 1 4 3 . 4 6 4 5 2 . 6 8 2 Storage 24 | . 3 . 3 . . . . . 1 . 2 3 4 1 . . . 5 2 Processor 25 | . . . 1 . . . 1 3 1 . 9 1 . 2 . . 2 5 . Hackware 5 | . . . . . . . . . . 2 1 2 . . . . . . . Protection 45 | . . . 4 1 . . 1 4 3 . 8 10 4 1 3 . 4 2 . Artifact . | . . . . . . . . . . . . . . . . . . . . Weapon 150 | . 3 1 16 2 . . 8 13 23 . 6 7 14 8 6 . 14 18 11 Energy Gun 52 | . 2 . 10 1 . . 5 3 9 . 2 1 4 . 1 . 5 7 2 Energy Cannon 27 | . . . . . . . . . . . . 3 8 6 1 . 3 6 . Ballistic Gun 27 | . 1 1 3 . . . 1 2 5 . 2 . . . 2 . 5 3 2 Ballistic Cannon 4 | . . . . . . . . . . . . . . . 1 . . . 3 Launcher 14 | . . . 3 1 . . . 2 2 . . 1 . 2 1 . . 1 1 Special Weapon 1 | . . . . . . . . . . . . . . . . . . 1 . Impact Weapon . | . . . . . . . . . . . . . . . . . . . . Slashing Weapon 20 | . . . . . . . 2 6 7 . 1 1 . . . . . . 3 Piercing Weapon 5 | . . . . . . . . . . . 1 1 2 . . . 1 . . Special Melee Weapon . | . . . . . . . . . . . . . . . . . . . . Unidentified Prototypes 29 | . . . 2 . . . 1 1 4 . 3 1 . . 4 . 4 3 6 Parts Lost 100 | . 2 . 8 . . . 1 3 4 4 7 9 1 5 6 . 19 20 11 Power 19 | . 1 . 1 . . . . 1 . . 1 2 1 1 1 . 3 4 3 Propulsion 20 | . . . 1 . . . . . . 2 1 2 . 1 . . 6 4 3 Utility 32 | . . . 1 . . . . 1 2 2 2 4 . 2 2 . 7 7 2 Weapon 29 | . 1 . 5 . . . 1 1 2 . 3 1 . 1 3 . 3 5 3 Highest Loss Streak 10 | . 2 . 3 . . . 1 1 2 4 3 3 1 2 4 . 10 8 10 Average Slot Usage (%) 89 | . 94 100 98 100 100 100 99 93 94 65 81 88 92 88 88 89 83 74 62 Engine 3 | . 14 14 6 8 . . . 5 3 . 4 2 4 . . . . 3 . Core 2 | . . . 4 2 11 11 9 1 2 4 1 1 5 3 . . . 3 5 Reactor 1 | . . . . . . . . . . . . . . 6 9 10 8 3 2 Treads 4 | . . . . . . . . . . . . 2 12 13 10 10 9 12 . Leg 11 | . 28 28 21 22 22 22 27 23 20 13 . . . . . . . 1 13 Hover 1 | . . . . . . . . . . . 13 7 . . . . . 1 . Device 7 | . . . . . . . 3 7 12 . 7 7 18 13 9 10 9 8 12 Storage 12 | . 22 28 22 22 22 22 18 15 13 14 5 6 8 10 10 10 8 4 7 Processor 15 | . . . 11 11 11 11 9 20 15 14 28 25 12 10 15 15 16 20 13 Hackware 1 | . . . . . . . . . . . . 7 5 5 5 5 4 . . Protection 7 | . . . 9 11 11 11 13 8 12 8 8 7 5 6 9 10 8 3 . Energy Gun 6 | . 18 11 14 22 22 22 17 3 4 4 . . 3 . 4 5 4 3 . Energy Cannon 2 | . . . . . . . . . . . . 3 10 14 . . . 2 1 Ballistic Gun 3 | . 8 16 7 . . . . 1 3 . 3 . . . 5 10 8 1 . Slashing Weapon 1 | . . . . . . . . 4 3 4 . 2 . . . . . . . Naked Turns 79 | . . . . . . . . . . 55 . . . . . . . . 24 Heaviest Build 105 | 13 53 56 62 64 64 64 67 70 98 93 38 58 101 101 105 103 103 85 78 Greatest Support 175 | 20 20 20 26 28 28 28 41 58 60 60 43 54 124 127 160 160 160 175 113 Greatest Overweight (x) 6 | . 2 2 6 2 2 2 1 1 1 1 1 2 2 3 3 . 3 1 1 Average Overweight (x) . | . . 2 1 1 2 2 1 . 1 . . . . . . . . . . Largest Inventory Capacity 18 | 6 18 18 18 16 16 16 16 16 16 16 8 8 12 12 12 12 12 12 12 Average Capacity 12 | 6 10 18 15 16 16 16 16 16 16 12 4 8 10 12 12 12 10 7 9 Most Carried 18 | 6 8 11 18 16 16 16 16 16 16 16 8 8 12 12 12 12 12 12 12 Average Carried 11 | 6 5 9 13 15 15 16 15 15 15 12 4 7 10 11 11 11 10 6 9 Final Capacity 18 | 6 18 18 16 16 16 16 16 16 16 4 8 8 12 12 12 12 4 12 4 Final Carried 16 | 6 8 11 15 16 16 16 16 16 16 4 8 8 12 12 11 12 4 11 3 Class Distribution -------------------- 49% | Mutant 16% | Scavenger-Mutant 8% | Scavenger-Gunner 8% | Scavenger-Tank 6% | Gladiator 5% | Scout Dominant Class ---------------- Mutant | -10/Materials Mutant | -10/Mines Mutant | -9/Materials Mutant | -9/Mines Mutant | -9/Exiles Mutant | -8/Mines Mutant | -8/Materials Gladiator | -7/Factory Mutant | -6/Factory Mutant | -6/Waste Mutant | -6/Factory Hacker-Scout | -5/Factory Scavenger-Mutant | -4/Factory Scavenger-Mutant | -4/Extension Scavenger-Tank | -4/Cetus Scavenger-Tank | -4/Archives Scavenger-Tank | -4/Hub_04(d) Scavenger-Mutant | -3/Research Scavenger-Gunner | -3/Testing Resources | -11 -10 -10 -9 -9 -9 -8 -8 -7 -6 -6 -6 -5 -4 -4 -4 -4 -4 -3 -3 ----------- Run | Scr Mat Min Mat Min Exi Min Mat Fac Fac Was Fac Fac Fac Ext Cet Arc Hub Res Tes Matter Collected 6960 | 200 276 13 474 71 . . 120 413 976 . 535 456 309 334 362 120 345 1766 190 Remotely . | . . . . . . . . . . . . . . . . . . . . Salvage Created 15956 | . 444 30 1279 118 . . 307 991 1066 . 1304 1185 1187 1270 983 404 843 4126 419 Parts 710 | . 27 2 80 8 . . 17 57 49 . 60 66 27 42 36 20 53 149 17 Haulers Intercepted 9 | . . . 3 . . . . . . . 4 1 . . . . . 1 . Recyclers Shooed 17 | . . 1 . . . . . 3 . . 1 5 1 1 . . 1 4 . Parts Field Recycled . | . . . . . . . . . . . . . . . . . . . . Retrieved Matter . | . . . . . . . . . . . . . . . . . . . . Parts Self-Destructed . | . . . . . . . . . . . . . . . . . . . . Prevented . | . . . . . . . . . . . . . . . . . . . . Kills | -11 -10 -10 -9 -9 -9 -8 -8 -7 -6 -6 -6 -5 -4 -4 -4 -4 -4 -3 -3 ------- Run | Scr Mat Min Mat Min Exi Min Mat Fac Fac Was Fac Fac Fac Ext Cet Arc Hub Res Tes Combat Hostiles Destroyed 208 | . 10 . 26 5 . . 5 18 21 . 9 17 6 13 15 4 11 40 8 Melee 26 | . . . . . . . . 6 . . 8 8 . . . . . 4 . Guns 91 | . 10 . 18 2 . . 5 4 12 . 1 . . . 4 4 9 21 1 Cannons 25 | . . . . . . . . . . . . 6 5 7 . . 1 5 1 AOE 50 | . . . 8 3 . . . 7 7 . . 3 . 4 8 . . 4 6 Classes Destroyed 18 | . 3 1 5 . . . . 3 . . 1 1 . 1 . . 1 . 2 Worker 22 | . . 1 2 . . . 1 3 1 . 3 . 2 . . . 3 6 . Builder 8 | . . . 2 . . . . . 1 . 2 1 . . . . 1 1 . Tunneler 1 | . . . . . . . . . . . . 1 . . . . . . . Hauler 9 | . . . 3 . . . . . . . 4 1 . . . . . 1 . Recycler 26 | . 2 . 2 1 . . . 2 . . 2 1 5 3 . . . 8 . Mechanic 1 | . . . . . . . . . . . . . . . . . . . 1 Operator 3 | . . . . . . . . 1 . . . 1 . . . 1 . . . Watcher 7 | . . . . . . . . 1 1 . 1 . 1 1 1 . . 1 . Swarmer 40 | . 5 . 10 4 . . . 4 8 . . 3 . . 4 . . 2 . Saboteur 1 | . . . . . . . . . . . . . . . . . . . 1 Grunt 60 | . 5 . 7 1 . . 2 4 8 . . 2 . 7 5 . 2 14 3 Brawler 3 | . . . 1 . . . . . . . . . . . . . . 1 1 Duelist 5 | . . . 1 . . . 1 . . . . . . 1 . . . . 2 Protector 2 | . . . . . . . . . . . . . . . . . 1 . 1 Sentry 34 | . . . 7 . . . 2 5 3 . 3 4 2 1 . 4 . 3 . Hunter 8 | . . . . . . . . . . . 2 1 . 1 2 . . 2 . Programmer 45 | . . . . . . . . 5 2 . 4 7 4 1 . . 4 18 . Behemoth 2 | . . . . . . . . . . . . . . 2 . . . . . Cetus Guard 4 | . . . . . . . . . . . . . . . 4 . . . . Lightning 4 | . . . . . . . . . . . . . . . . . 4 . . Best Kill Streak 8 | . 4 1 7 3 . . 2 6 4 . 7 6 5 3 5 3 6 6 8 Combat Bots Only 7 | . 3 . 5 3 . . 2 5 4 . 2 3 2 3 4 3 6 5 7 Max Kills in Single Turn 4 | . 1 1 4 3 . . 1 4 4 . 1 3 2 2 3 2 2 2 4 Gunslinging . | . . . . . . . . . . . . . . . . . . . . Exploded 4 | . . . 4 3 . . . 3 4 . . 3 . 1 3 . . 2 4 Melee 1 | . . . . . . . . 1 . . 1 1 . . . . . 1 . Uniques/NPCs Destroyed . | . . . . . . . . . . . . . . . . . . . . Combat | -11 -10 -10 -9 -9 -9 -8 -8 -7 -6 -6 -6 -5 -4 -4 -4 -4 -4 -3 -3 -------- Run | Scr Mat Min Mat Min Exi Min Mat Fac Fac Was Fac Fac Fac Ext Cet Arc Hub Res Tes Damage Taken 22734 | . 333 . 966 82 . . 531 1255 1250 225 1437 1489 540 1810 1808 178 3535 4368 2927 Core 3337 | . 31 . 129 21 . . 99 100 175 186 143 303 32 173 91 37 441 315 1061 Absorbed by Shields 1526 | . . . . . . . . . 12 . . . 140 54 831 184 305 . . Reduced by Siege Mode 164 | . . . . . . . . . . . . . . . . . 48 116 . Core Remaining (%) 69 | 100 . 87 . . . 62 82 85 . . 40 69 . . . . 32 . . Volleys Fired 595 | . 32 3 64 7 . . 29 31 53 . 15 20 34 68 30 15 42 141 11 Largest 3 | . 2 2 2 2 . . 2 2 2 . 1 2 3 3 3 3 3 3 2 Hottest 310 | . 90 60 90 121 . . 110 108 108 . 60 180 276 296 150 150 310 204 136 Shots Fired 1091 | . 64 6 120 13 . . 50 44 89 . 14 29 60 113 56 35 102 280 16 Gun 806 | . 64 6 114 12 . . 50 36 76 . 14 1 21 . 37 35 96 238 6 Cannon 224 | . . . . . . . . . . . . 25 39 104 2 . 6 40 8 Launcher 61 | . . . 6 1 . . . 8 13 . . 3 . 9 17 . . 2 2 Special . | . . . . . . . . . . . . . . . . . . . . Kinetic 351 | . 16 3 26 . . . . 8 36 . 7 . . . 26 30 62 125 12 Thermal 341 | . 39 3 10 8 . . 12 11 18 . 6 25 30 84 13 5 40 37 . Explosive 24 | . . . 6 1 . . . 8 2 . . 3 . . . . . 2 2 Electromagnetic 375 | . 9 . 78 4 . . 38 17 33 . 1 1 30 29 17 . . 116 2 Robot Hit Streak 26 | . 13 9 22 1 . . 16 20 20 . 4 9 17 22 11 19 13 26 7 Robot Miss Streak 5 | . 2 . 3 5 . . 1 3 4 . 1 1 1 3 3 2 5 2 1 Penetration Max 2 | . . . . . . . . . . . 1 . . . . 1 1 2 1 Secondary Targets 8 | . . . 3 . . . . . . . . . . . . . 1 3 1 Max Gunslinging Chain 1 | . . . 1 . . . . . . . . . . . . . 1 1 1 Shots Hit Robots 922 | . 47 5 91 3 . . 40 60 73 . 56 55 42 77 42 27 60 232 12 Core Hits 525 | . 21 2 58 6 . . 13 40 47 . 29 30 18 34 33 16 34 120 24 Critical Hits 72 | . . . . . . . . . 1 . 8 6 6 6 2 5 8 30 . Critical Kills 21 | . . . . . . . . . 1 . 2 3 1 . 1 3 4 6 . Critical Parts Destroyed 39 | . . . . . . . . . . . 6 2 1 5 1 1 4 19 . Melee Attacks 262 | . . . . . . . 2 43 41 . 84 77 6 . . . 5 . 4 Impact . | . . . . . . . . . . . . . . . . . . . . Slashing 144 | . . . . . . . 2 43 41 . 5 49 . . . . . . 4 Piercing 118 | . . . . . . . . . . . 79 28 6 . . . 5 . . Sneak Attacks 27 | . . . . . . . . 3 2 . 13 9 . . . . . . . Combat Hostiles 3 | . . . . . . . . . . . 1 2 . . . . . . . Follow-up Attacks . | . . . . . . . . . . . . . . . . . . . . Damage Inflicted 37652 | . 594 48 2035 222 . . 600 3096 2268 . 2671 3799 1846 4026 2388 803 2312 8004 2940 Guns 13733 | . 540 48 1379 69 . . 564 554 1163 . 126 28 483 . 670 803 1949 5158 199 Cannons 8054 | . . . . . . . . . . . . 887 1303 3244 30 . 221 1982 387 Explosions 8855 | . 54 . 656 153 . . 36 1038 818 . . 361 60 782 1688 . 140 715 2354 Melee 6859 | . . . . . . . . 1504 287 . 2545 2523 . . . . . . . Ramming 151 | . . . . . . . . . . . . . . . . . 2 149 . Kinetic 6980 | . 114 25 276 . . . . 151 615 . 46 . . . 380 672 1092 3129 480 Thermal 9463 | . 382 23 284 54 . . 156 212 384 . 80 887 1083 2979 707 131 1078 1023 . Explosive 5299 | . . . 458 153 . . . 1038 220 . . 361 . . . . . 715 2354 Electromagnetic 8900 | . 98 . 1017 15 . . 444 191 762 . . 28 763 1047 1301 . 140 2988 106 Impact . | . . . . . . . . . . . . . . . . . . . . Slashing 4447 | . . . . . . . . 1504 287 . 467 2189 . . . . . . . Piercing 2412 | . . . . . . . . . . . 2078 334 . . . . . . . Highest Corruption 32 | . . . . . . . . 8 3 3 4 4 3 . . . 32 14 20 Average Corruption 5 | . . . . . . . . 4 2 3 2 3 2 . . . 14 8 15 Corruption Purged 10 | . . . . . . . . . . . 3 4 3 . . . . . . Effects 236 | . . . . . . . . 30 18 3 21 20 7 . . . 40 82 15 Message Errors 40 | . . . . . . . . 8 4 1 8 4 1 . . . 6 7 1 Matter Fused 41 | . . . . . . . . 8 6 . 4 7 2 . . . 6 6 2 Heat Flow Errors 20 | . . . . . . . . 2 1 1 2 1 . . . . 1 10 2 Energy Discharges 19 | . . . . . . . . 6 3 . 1 1 1 . . . . 6 1 Parts Rejected 3 | . . . . . . . . . . . . 2 . . . . 1 . . Data Loss (minor) 26 | . . . . . . . . 2 2 1 5 4 3 . . . 1 7 1 Data Loss (major) 2 | . . . . . . . . . . . . . . . . . . 1 1 Misfires 1 | . . . . . . . . . . . . . . . . . . 1 . Alerts 1 | . . . . . . . . . . . . . . . . . . . 1 Misdirections 16 | . . . . . . . . . . . . . . . . . 6 4 6 Targeting Errors 57 | . . . . . . . . 3 1 . 1 1 . . . . 17 34 . Weapon Failures 10 | . . . . . . . . 1 1 . . . . . . . 2 6 . Overload Shots 21 | . . . . . . . . . 3 . 7 . . . . . 11 . . Effects 3 | . . . . . . . . . . . 3 . . . . . . . . Meltdown 3 | . . . . . . . . . . . 3 . . . . . . . . Overflow Damage 1705 | . . . 29 . . . . 360 19 . 330 537 82 115 4 . . 87 142 Projectiles 252 | . . . . . . . . . . . . 40 72 46 . . . 62 32 Explosions 333 | . . . 29 . . . . 30 19 . . 37 10 69 4 . . 25 110 Melee 1120 | . . . . . . . . 330 . . 330 460 . . . . . . . Knockbacks 4 | . . . . . . . . . . . . . . . . . . 2 2 Impact 2 | . . . . . . . . . . . . . . . . . . 2 . Kinetic 2 | . . . . . . . . . . . . . . . . . . . 2 Secondary . | . . . . . . . . . . . . . . . . . . . . Self-Inflicted Damage 955 | . 39 . 229 . . . . . 50 . . 63 75 4 24 . 106 198 167 Shots 19 | . 1 . 5 . . . . . 2 . . 1 1 1 3 . 1 2 2 Rammed 31 | . . . . . . . . . . . . . . . . . 1 30 . Targets Rammed 40 | . . . . . . . . . . . . . . . . . 1 39 . Kicked 5 | . . . . . . . . . . . . . . . . . . 5 . Crushed 4 | . . . . . . . . . . . . . . . . . . 4 . Highest Temperature 408 | . 321 40 256 192 . . 354 215 152 121 186 360 352 408 199 199 204 339 207 Average Temperature 95 | . 104 19 54 77 . . 144 68 49 68 36 100 99 122 77 110 112 102 73 Received Heat Transfer 2824 | . 105 . 225 18 . . 171 309 342 . 72 174 54 258 157 12 60 450 417 Effects 7 | . 1 . . . . . . . . . . . 2 2 . . . 2 . Shutdowns 1 | . . . . . . . . . . . . . 1 . . . . . . Energy Bleed 1 | . . . . . . . . . . . . . . . . . . 1 . Interference 1 | . . . . . . . . . . . . . . . . . . 1 . Short Circuit 2 | . 1 . . . . . . . . . . . . 1 . . . . . Damage (minor) 2 | . . . . . . . . . . . . . 1 1 . . . . . Siege Activations 8 | . . . . . . . . . . . . . . 1 . . 2 5 . Total Turns 327 | . . . . . . . . . . . . . . 18 . . 62 247 . Longest Duration 84 | . . . . . . . . . . . . . . 18 . . 42 84 . Robots Corrupted 18 | . . . . . . . . 1 2 . . . 2 2 3 . 1 7 . Combat Hostiles 16 | . . . . . . . . 1 2 . . . 1 2 3 . 1 6 . Parts Fried 78 | . . . 3 . . . 1 3 3 . . . 18 6 5 . 1 38 . Impact Corruptions . | . . . . . . . . . . . . . . . . . . . . Robots Melted . | . . . . . . . . . . . . . . . . . . . . Combat Hostiles . | . . . . . . . . . . . . . . . . . . . . Parts Melted 22 | . 1 . . 1 . . . 2 3 . 1 2 5 . . 1 5 1 . Heat Transferred 11187 | . 968 50 472 111 . . 346 400 673 . 100 860 1103 2978 707 148 1161 1110 . Parts Sabotaged 3 | . . . . . . . . . . . . . . . . . . . 3 Parts Stolen . | . . . . . . . . . . . . . . . . . . . . Parts Stripped . | . . . . . . . . . . . . . . . . . . . . Power Chain Reactions 17 | . 1 . 3 . . . 1 . 1 . . . 1 3 6 . 1 . . Missiles Intercepted . | . . . . . . . . . . . . . . . . . . . . Alert | -11 -10 -10 -9 -9 -9 -8 -8 -7 -6 -6 -6 -5 -4 -4 -4 -4 -4 -3 -3 ------- Run | Scr Mat Min Mat Min Exi Min Mat Fac Fac Was Fac Fac Fac Ext Cet Arc Hub Res Tes Peak Influence 1807 | . 193 152 459 250 . . 172 328 416 145 221 368 254 283 331 238 403 935 1807 Average Influence 197 | . 80 29 186 130 . . 96 130 261 133 94 245 143 123 196 214 201 337 1678 Maximum Alert Level 5 | . . . 2 1 . . . 1 2 . 1 1 1 1 1 1 2 3 5 Low Security (%) 62 | 100 100 100 58 94 . 100 100 68 18 100 93 25 80 86 51 22 52 55 . Level 1 30 | . . . 34 5 . . . 31 73 . 6 74 19 13 48 77 42 7 . Level 2 4 | . . . 6 . . . . . 7 . . . . . . . 4 26 . Level 3 1 | . . . . . . . . . . . . . . . . . . 10 . Level 4 . | . . . . . . . . . . . . . . . . . . . . Level 5 . | . . . . . . . . . . . . . . . . . . . . High Security . | . . . . . . . . . . . . . . . . . . . . Max Security 1 | . . . . . . . . . . . . . . . . . . . 99 Squads Dispatched 60 | . 1 . 2 1 . . . 5 6 . 9 6 1 2 . . 3 12 12 Investigation 10 | . 1 . . 1 . . . . 3 . 3 1 . . . . . 1 . Extermination 20 | . . . . . . . . 3 2 . 4 3 1 . . . 2 5 . Reinforcement 11 | . . . 2 . . . . 2 1 . . 2 . 2 . . 1 1 . Assault 13 | . . . . . . . . . . . . . . . . . . 1 12 Garrison 6 | . . . . . . . . . . . 2 . . . . . . 4 . Intercept . | . . . . . . . . . . . . . . . . . . . . Construction Impeded 4 | . . . 1 . . . . . 1 . . . . 1 . . 1 . . Haulers Reinforced . | . . . . . . . . . . . . . . . . . . . . Stealth | -11 -10 -10 -9 -9 -9 -8 -8 -7 -6 -6 -6 -5 -4 -4 -4 -4 -4 -3 -3 --------- Run | Scr Mat Min Mat Min Exi Min Mat Fac Fac Was Fac Fac Fac Ext Cet Arc Hub Res Tes Distress Signals 18 | . 1 . 2 . . . 1 . 1 . . . 1 3 2 . 1 5 1 Communications Jammed 2 | . . . . . . . . 2 . . . . . . . . . . . Distress Signals 2 | . . . . . . . . 2 . . . . . . . . . . . Times Spotted 381 | . 16 2 44 7 . . 12 29 29 6 14 25 17 23 21 4 17 72 43 Peak Tracking Total 25 | . 4 2 8 3 . . 4 5 4 6 3 5 3 4 6 2 6 9 25 Tactical Retreats 29 | . 1 . 6 1 . . 1 2 2 1 . . 1 3 . . 1 8 2 Traps | -11 -10 -10 -9 -9 -9 -8 -8 -7 -6 -6 -6 -5 -4 -4 -4 -4 -4 -3 -3 ------- Run | Scr Mat Min Mat Min Exi Min Mat Fac Fac Was Fac Fac Fac Ext Cet Arc Hub Res Tes Traps Triggered 11 | . 1 . . . . . . 1 1 . 2 1 2 2 . . 1 . . Indirectly . | . . . . . . . . . . . . . . . . . . . . Trap Hack Attempts . | . . . . . . . . . . . . . . . . . . . . Triggered . | . . . . . . . . . . . . . . . . . . . . Disarmed . | . . . . . . . . . . . . . . . . . . . . Reprogrammed . | . . . . . . . . . . . . . . . . . . . . Reused . | . . . . . . . . . . . . . . . . . . . . Traps Extracted . | . . . . . . . . . . . . . . . . . . . . Installed . | . . . . . . . . . . . . . . . . . . . . Triggered 1 | . . . . . . . . . . . . . . . . . 1 . . Machines | -11 -10 -10 -9 -9 -9 -8 -8 -7 -6 -6 -6 -5 -4 -4 -4 -4 -4 -3 -3 ---------- Run | Scr Mat Min Mat Min Exi Min Mat Fac Fac Was Fac Fac Fac Ext Cet Arc Hub Res Tes Machines Disabled 24 | . . . 3 . . . . 1 2 . . . 1 5 2 1 3 3 3 Max in Single Turn 3 | . . . 2 . . . . 1 1 . . . 1 1 1 1 3 1 1 Garrison Access 5 | . . . . . . . . . 3 . . . 1 . . . . 1 . Network Hub 1 | . . . . . . . . . . . . . . . . . 1 . . Energy Cycler 1 | . . . . . . . . . . . . . . 1 . . . . . Machines Sabotaged . | . . . . . . . . . . . . . . . . . . . . Garrisons Compromised . | . . . . . . . . . . . . . . . . . . . . Overloaded Fab Kills . | . . . . . . . . . . . . . . . . . . . . Fab Network Shutdowns . | . . . . . . . . . . . . . . . . . . . . Hacking | -11 -10 -10 -9 -9 -9 -8 -8 -7 -6 -6 -6 -5 -4 -4 -4 -4 -4 -3 -3 --------- Run | Scr Mat Min Mat Min Exi Min Mat Fac Fac Was Fac Fac Fac Ext Cet Arc Hub Res Tes Machines Accessed 69 | . 5 . 6 1 1 . 6 7 10 . 7 5 4 9 3 1 1 3 . Terminals 51 | . 5 . 5 . . . 6 7 4 . 7 4 . 7 3 . 1 2 . Fabricators 1 | . . . . . . . . . 1 . . . . . . . . . . Repair Stations 2 | . . . . . . . . . . . . . 2 . . . . . . Recycling Units 6 | . . . 1 . . . . . 1 . . 1 1 2 . . . . . Scanalyzers 1 | . . . . . . . . . 1 . . . . . . . . . . Garrison Access 5 | . . . . . . . . . 3 . . . 1 . . . . 1 . Total Hacks 170 | . 12 . 11 1 1 . 16 16 19 . 20 12 8 14 9 25 2 4 . Successful 83 | . 5 . 6 1 1 . 5 5 8 . 4 4 4 8 5 25 1 1 . Failed 87 | . 7 . 5 . . . 11 11 11 . 16 8 4 6 4 . 1 3 . Catastrophic 21 | . 2 . 1 . . . 1 4 3 . 4 4 . . . . . 2 . Database Lockouts . | . . . . . . . . . . . . . . . . . . . . Manual 96 | . 11 . 9 . 1 . 12 16 12 . 17 10 . 4 . . 2 2 . Terminals 117 | . 12 . 10 . . . 16 16 9 . 20 10 . 10 9 . 2 3 . Fabricators 1 | . . . . . . . . . 1 . . . . . . . . . . Repair Stations 5 | . . . . . . . . . . . . . 5 . . . . . . Recycling Units 10 | . . . 1 . . . . . 2 . . 2 1 4 . . . . . Scanalyzers 1 | . . . . . . . . . 1 . . . . . . . . . . Garrison Access 9 | . . . . . . . . . 6 . . . 2 . . . . 1 . Terminal Hacks 50 | . 3 . 3 1 1 . 3 2 . . 1 1 . 5 5 25 . . . Record 30 | . . . . . . . . . . . . . . 1 4 25 . . . Open Door 6 | . . . . 1 . . . . . . . . . 4 1 . . . . Branch Access Points 5 | . 1 . 1 . . . . 1 . . 1 1 . . . . . . . Terminal Index 2 | . 1 . . . . . 1 . . . . . . . . . . . . Alert Level 1 | . . . . . . . 1 . . . . . . . . . . . . Unreport Threat 1 | . . . . . . . . 1 . . . . . . . . . . . Dispatch Records 1 | . . . . . . . 1 . . . . . . . . . . . . Registered Components 1 | . . . 1 . . . . . . . . . . . . . . . . Zone Layout 2 | . 1 . 1 . . . . . . . . . . . . . . . . EX-Prototype ID Bank 1 | . . . . . 1 . . . . . . . . . . . . . . Fabricator Hacks 1 | . . . . . . . . . 1 . . . . . . . . . . Build 1 | . . . . . . . . . 1 . . . . . . . . . . Repair Station Hacks 2 | . . . . . . . . . . . . . 2 . . . . . . Scan Component 1 | . . . . . . . . . . . . . 1 . . . . . . Repair 1 | . . . . . . . . . . . . . 1 . . . . . . Recycling Unit Hacks 5 | . . . 1 . . . . . 1 . . 1 1 1 . . . . . Retrieve Components 5 | . . . 1 . . . . . 1 . . 1 1 1 . . . . . Scanalyzer 1 | . . . . . . . . . 1 . . . . . . . . . . Insert Component 1 | . . . . . . . . . 1 . . . . . . . . . . Garrison Access Hacks 2 | . . . . . . . . . 1 . . . 1 . . . . . . Seal Access 2 | . . . . . . . . . 1 . . . 1 . . . . . . Unauthorized Hacks 22 | . 2 . 2 . . . 2 3 4 . 3 2 . 2 . . 1 1 . Terminals 19 | . 2 . 2 . . . 2 3 2 . 3 2 . 2 . . 1 . . Assimilate 1 | . . . . . . . 1 . . . . . . . . . . . . Botnet 18 | . 2 . 2 . . . 1 3 2 . 3 2 . 2 . . 1 . . Fabricators . | . . . . . . . . . . . . . . . . . . . . Repair Stations . | . . . . . . . . . . . . . . . . . . . . Recycling Units . | . . . . . . . . . . . . . . . . . . . . Scanalyzers . | . . . . . . . . . . . . . . . . . . . . Garrison Access 3 | . . . . . . . . . 2 . . . . . . . . 1 . Jam 3 | . . . . . . . . . 2 . . . . . . . . 1 . Data Cores Recovered 1 | . . . . . . . . . . . . 1 . . . . . . . Used . | . . . . . . . . . . . . . . . . . . . . Hacking Detections 46 | . 5 . 4 . . . 5 7 6 . 6 4 2 4 1 . 1 1 . Full Trace Events 3 | . . . . . . . . . 1 . 2 . . . . . . . . Feedback Events . | . . . . . . . . . . . . . . . . . . . . Feedback Blocked . | . . . . . . . . . . . . . . . . . . . . Robot Schematics Acquired . | . . . . . . . . . . . . . . . . . . . . Robots Built 3 | . . . . . . . . . 3 . . . . . . . . . . Matter 285 | . . . . . . . . . 285 . . . . . . . . . . Time 152 | . . . . . . . . . 152 . . . . . . . . . . Total Robot Build Rating 15 | . . . . . . . . . 15 . . . . . . . . . . Part Schematics Acquired . | . . . . . . . . . . . . . . . . . . . . Parts Built . | . . . . . . . . . . . . . . . . . . . . Matter . | . . . . . . . . . . . . . . . . . . . . Time . | . . . . . . . . . . . . . . . . . . . . Total Part Build Rating . | . . . . . . . . . . . . . . . . . . . . Parts Repaired 1 | . . . . . . . . . . . . . 1 . . . . . . Time 50 | . . . . . . . . . . . . . 50 . . . . . . Parts Recycled . | . . . . . . . . . . . . . . . . . . . . Recycled Matter . | . . . . . . . . . . . . . . . . . . . . Retrieved Matter . | . . . . . . . . . . . . . . . . . . . . Retrieved Components 16 | . . . 5 . . . . . 2 . . . 8 1 . . . . . Parts Scanalyzed . | . . . . . . . . . . . . . . . . . . . . Part Schematics Acquired . | . . . . . . . . . . . . . . . . . . . . Parts Damaged . | . . . . . . . . . . . . . . . . . . . . Bothacking | -11 -10 -10 -9 -9 -9 -8 -8 -7 -6 -6 -6 -5 -4 -4 -4 -4 -4 -3 -3 ------------ Run | Scr Mat Min Mat Min Exi Min Mat Fac Fac Was Fac Fac Fac Ext Cet Arc Hub Res Tes Used RIF Installer . | . . . . . . . . . . . . . . . . . . . . Robots Hacked . | . . . . . . . . . . . . . . . . . . . . Non-combat . | . . . . . . . . . . . . . . . . . . . . Combat . | . . . . . . . . . . . . . . . . . . . . Robot Hacks Applied . | . . . . . . . . . . . . . . . . . . . . Relay Couplers Released 4 | . . . . . . . . . . . . . . . . . . 4 . Programmers 4 | . . . . . . . . . . . . . . . . . . 4 . Robots Rewired 4 | . . . . . . . . . 1 . . . . 3 . . . . . Allies Hacked . | . . . . . . . . . . . . . . . . . . . . Hacks Repelled . | . . . . . . . . . . . . . . . . . . . . Allies | -11 -10 -10 -9 -9 -9 -8 -8 -7 -6 -6 -6 -5 -4 -4 -4 -4 -4 -3 -3 -------- Run | Scr Mat Min Mat Min Exi Min Mat Fac Fac Was Fac Fac Fac Ext Cet Arc Hub Res Tes Total Allies 11 | . . 3 . . . . 1 . 4 . . . . 3 . . . . . Largest Group 3 | . . 3 3 . . . 1 . 3 . . . . 3 . . . . . Highest-Rated Group 136 | . . 40 40 . . . 10 . 87 . . . . 136 . . . . . Highest-Rated Ally 49 | . . 16 16 . . . 10 . 32 . . . . 49 . . . . . Total Orders 2 | . . . . . . . . . . . . 2 . . . . . . . COLLECT 1 | . . . . . . . . . . . . 1 . . . . . . . EXPLORE 1 | . . . . . . . . . . . . 1 . . . . . . . Ally Attacks 63 | . . 23 2 . . . . . 8 . . . . 30 . . . . . Total Damage 1222 | . . 266 16 . . . . . 181 . . . . 759 . . . . . Kills 7 | . . 4 . . . . . . . . . . . 3 . . . . . Allies Corrupted 1 | . . . . . . . . . 1 . . . . . . . . . . Allies Melted . | . . . . . . . . . . . . . . . . . . . . Intel | -11 -10 -10 -9 -9 -9 -8 -8 -7 -6 -6 -6 -5 -4 -4 -4 -4 -4 -3 -3 ------- Run | Scr Mat Min Mat Min Exi Min Mat Fac Fac Was Fac Fac Fac Ext Cet Arc Hub Res Tes Robot Analysis Total . | . . . . . . . . . . . . . . . . . . . . Derelict Logs Recovered 3 | . . 2 . 1 . . . . . . . . . . . . . . . Drone Launches 1 | . . . . . . . . . . . . 1 . . . . . . . Drone Recoveries 1 | . . . . . . . . . . . . 1 . . . . . . . Exploration | -11 -10 -10 -9 -9 -9 -8 -8 -7 -6 -6 -6 -5 -4 -4 -4 -4 -4 -3 -3 ------------- Run | Scr Mat Min Mat Min Exi Min Mat Fac Fac Was Fac Fac Fac Ext Cet Arc Hub Res Tes Turns Passed 20599 | 3 582 838 1469 643 463 350 430 1913 3164 294 1915 1375 1228 1902 660 385 717 2012 256 Spaces Moved 13053 | 3 322 446 702 391 249 190 197 1125 1745 284 2236 1486 662 992 342 207 304 945 225 Core 615 | . . . . . . . . . . 158 255 . . . . . 17 81 104 Treads 2419 | . . . . . . . . . . . . 3 317 724 320 207 275 573 . Legs 5682 | 3 322 446 702 391 249 190 197 1125 1745 126 . . . . . . . 65 121 Wheels 814 | . . . . . . . . . . . . 167 345 268 22 . 12 . . Hover 2809 | . . . . . . . . . . . 1981 602 . . . . . 226 . Flight 714 | . . . . . . . . . . . . 714 . . . . . . . Fastest Speed 37 | 120 120 180 150 150 180 180 150 126 153 50 48 37 110 130 120 160 50 50 50 Average Speed 119 | 120 139 180 161 156 180 180 150 135 155 95 51 51 137 151 157 160 151 122 86 Slowest Speed 300 | 120 180 180 300 180 180 180 150 156 156 153 100 190 161 181 160 160 170 172 130 Overloaded Moves . | . . . . . . . . . . . . . . . . . . . . Propulsion Burnouts . | . . . . . . . . . . . . . . . . . . . . Robots Hopped 4 | . . . . . . . . . . . . 4 . . . . . . . Cave-ins Triggered . | . . . . . . . . . . . . . . . . . . . . Exploration Rate (%) 49 | 2 60 93 63 78 61 25 20 30 53 83 50 27 13 76 92 100 22 19 32 Regions Visited 19 Branch Regions 9 Pre-discovered Areas . | . . . . . . . . . . . . . . . . . . . . Known Exits Taken 7 | . 1 . 1 . . . . . . . 1 . . 1 1 1 1 . . Unknown Exits Taken 10 | 1 . 1 . 1 1 1 1 1 . . . 1 1 . . . . 1 . Scrap Searched 4 | . . 1 . 3 . . . . . . . . . . . . . . . Spaces Dug 138 | . . . . . . . 2 17 41 . 28 38 6 . . . 2 1 3 Terrain Destroyed 792 | . 2 . 111 11 . . 5 60 58 . 28 82 25 43 28 7 198 72 62 Melee 124 | . . . . . . . 2 17 35 . 24 37 4 . . . 2 . 3 Projectile 76 | . . . . . . . . . 2 . 4 5 7 12 3 7 22 9 5 AOE 592 | . 2 . 111 11 . . 3 43 21 . . 40 14 31 25 . 174 63 54 Actions | -11 -10 -10 -9 -9 -9 -8 -8 -7 -6 -6 -6 -5 -4 -4 -4 -4 -4 -3 -3 --------- Run | Scr Mat Min Mat Min Exi Min Mat Fac Fac Was Fac Fac Fac Ext Cet Arc Hub Res Tes Total 16583 | 2 395 475 924 414 266 198 277 1412 2053 304 2847 1922 912 1279 413 231 467 1518 274 Wait 1824 | . 27 23 76 2 10 9 26 138 126 15 438 260 155 167 9 3 51 289 . Move 13027 | 2 321 445 701 390 248 189 196 1124 1745 283 2234 1477 661 991 341 206 303 945 225 Hop 4 | . . . . . . . . . . . . 4 . . . . . . . Pick Up 134 | . 4 2 20 2 4 . 5 14 13 1 12 11 6 6 4 4 7 15 4 Fast Attach 197 | . 2 . 8 2 . . 3 10 13 2 32 24 13 9 9 . 22 39 9 Attach 101 | . 3 . 9 2 . . 3 9 4 3 6 13 4 5 6 . 10 16 8 Detach 63 | . 1 . 5 3 . . . 5 3 . 6 11 5 3 4 . 5 8 4 Swap 119 | . 2 2 19 1 . . 7 14 23 . 2 4 16 12 2 . 2 11 2 Drop 198 | . 3 . 22 5 4 . 6 24 27 . 17 20 12 6 8 3 19 15 7 Fire 595 | . 32 3 64 7 . . 29 31 53 . 15 20 34 68 30 15 42 141 11 Melee 262 | . . . . . . . 2 43 41 . 84 77 6 . . . 5 . 4 Ram . | . . . . . . . . . . . . . . . . . . . . Kick 5 | . . . . . . . . . . . . . . . . . . 5 . Crush 34 | . . . . . . . . . . . . . . . . . 1 33 . Escape Stasis 1 | . . . . . . . . . . . 1 . . . . . . . . Rewire 19 | . . . . . . . . . 5 . . 1 . 12 . . . 1 . Trap . | . . . . . . . . . . . . . . . . . . . . Miscellaneous . | . . . . . . . . . . . . . . . . . . . . Route ------- -11/Scrapyard -10/Materials (discovered 2 exits: *Mat / *Min) -10/Mines -9/Materials (discovered 3 exits: *Mat / *Min x2) -9/Mines (discovered 2 exits: *Mat / *Exi) -9/Exiles -8/Mines -8/Materials (discovered 2 exits: *Fac / Sto) -7/Factory (discovered 5 exits: *Fac x3 / *Low x2) -6/Factory (discovered 4 exits: *Fac x3 / *Low) -6/Waste -6/Factory (discovered 5 exits: *Fac x3 / *Low x2) -5/Factory (discovered 3 exits: *Fac / Upp x2) -4/Factory -4/Extension (discovered 3 exits: *Res x2 / *Cet) -4/Cetus (discovered 2 exits: *Res / *Arc) -4/Archives (discovered 3 exits: *Res / *Hub x2) -4/Hub_04(d) -3/Research (discovered 2 exits: [*Tes x2]) -3/Testing History --------- Turn | Location | Event 1 | -11/Scrapyard | Discovered new exit (range 1) 4 | -11/Scrapyard | Entered Materials 94 | -10/Materials | Identified exit to Mines 313 | -10/Materials | Build established: Mutant 377 | -10/Materials | Discovered new exit (range 5) 586 | -10/Materials | Entered Mines 612 | -10/Mines | Assisted by bots powering up and referring to "LRC-V3" 937 | -10/Mines | Learned Materials trap positions 1399 | -10/Mines | Discovered new exit (range 11) 1424 | -10/Mines | Entered Materials 1424 | -9/Materials | Accompanied by 3 allies 1424 | -9/Materials | Evolved 2 slots: Utility x2 1425 | -9/Materials | Loaded intel: 27 trap records 1438 | -9/Materials | Discovered new exit (range 5) 1508 | -9/Materials | Identified exit to Mines 2123 | -9/Materials | Build established: Scavenger-Mutant 2263 | -9/Materials | Lost 3 parts (1p2w) 2554 | -9/Materials | Lost 3 parts (1u2w) 2636 | -9/Materials | Discovered new exit (range 3) 2893 | -9/Materials | Entered Mines 2902 | -9/Mines | Deemed a non-threat by the Exiles lab entrance 2904 | -9/Mines | Discovered new exit (range 5) 2963 | -9/Mines | Build established: Mutant 3091 | -9/Mines | Discovered new exit (range 16) 3093 | -9/Mines | Learned Materials interactive machine intel 3364 | -9/Mines | Met a Derelict shopkeep closing up shop 3536 | -9/Mines | Entered Exiles 3583 | -9/Exiles | Met 8R-AWN 3615 | -9/Exiles | Met EX-HEX 3664 | -9/Exiles | Met EX-BIN 3703 | -9/Exiles | Aligned with FarCom system 3705 | -9/Exiles | Given EX-Vault access code 3750 | -9/Exiles | Opened EX-Vault 3765 | -9/Exiles | Found Gui. Plasma Cannon 3802 | -9/Exiles | Warned to stay clear of 0b10 Research branches 3826 | -9/Exiles | Exiles lab attacked by MAIN.C 3935 | -9/Exiles | Discovered new exit (range 14) 3999 | -9/Exiles | Left Exiles lab with Gui. Plasma Cannon 3999 | -9/Exiles | Entered Mines 4018 | -8/Mines | Discovered new exit (range 9) 4349 | -8/Mines | Entered Materials 4349 | -8/Materials | Evolved 2 slots: Propulsion x1, Utility x1 4350 | -8/Materials | Identified exit to Storage 4351 | -8/Materials | Loaded intel: 19 interactive machine locations 4776 | -8/Materials | Discovered new exit (range 3) 4779 | -8/Materials | Entered Factory 4779 | -7/Factory | Evolved 2 slots: Utility x2 4995 | -7/Factory | Identified exit to Lower Caves 5100 | -7/Factory | Discovered new exit (range 14) 5366 | -7/Factory | Build established: Gladiator 5961 | -7/Factory | Discovered new exit (range 12) 6268 | -7/Factory | Discovered new exit (range 19) 6692 | -7/Factory | Entered another Factory area 6692 | -6/Factory | Evolved 2 slots: Utility x2 6697 | -6/Factory | Build established: Mutant 7307 | -6/Factory | Discovered new exit (range 9) 7602 | -6/Factory | Discovered new exit (range 8) 7854 | -6/Factory | Found Hvy. Reactive Plating 8005 | -6/Factory | Found Prototype Launcher 8005 | -6/Factory | Identified Scatter Rocket Array 8373 | -6/Factory | Discovered new exit (range 14) 8558 | -6/Factory | Fabricated G-50 Soldier? 9114 | -6/Factory | Discovered new exit (range 8) 9124 | -6/Factory | Identified exit to Factory 9856 | -6/Factory | Sucked down chute 9856 | -6/Factory | Entered Waste 9886 | -6/Waste | Spotted C-40 Crusher 9961 | -6/Waste | Spotted C-40 Crusher 9962 | -6/Waste | Spotted C-40 Crusher 9984 | -6/Waste | Spotted C-40 Crusher 10023 | -6/Waste | Spotted C-40 Crusher 10039 | -6/Waste | Spotted C-40 Crusher 10049 | -6/Waste | Crushed by Compactor (1 part destroyed, 1 dropped) 10052 | -6/Waste | Crushed by Compactor (1 part destroyed) 10065 | -6/Waste | Released all parts (13) 10068 | -6/Waste | Crushed by Compactor (1 part destroyed) 10079 | -6/Waste | Crushed by Compactor (1 part destroyed) 10110 | -6/Waste | Lost 4 parts (2n2u) 10116 | -6/Waste | Discovered new exit (range 12) 10150 | -6/Waste | Entered Factory 10393 | -6/Factory | Discovered new exit (range 15) 10580 | -6/Factory | Discovered exit to Factory (range 10) 10629 | -6/Factory | Garrison activated, responded to threat 10813 | -6/Factory | Found Hvy. Reflective Plating 11091 | -6/Factory | Garrison activated, responded to threat 11312 | -6/Factory | Discovered exit to Factory (range 8) 11395 | -6/Factory | Build established: Scout 11689 | -6/Factory | Core integrity fell below 50% 11763 | -6/Factory | Lost 3 parts (1n1u1w) 11865 | -6/Factory | Discovered exit to Factory (range 5) 11960 | -6/Factory | Identified exit to Lower Caves 12065 | -6/Factory | Entered another Factory area 12065 | -5/Factory | Evolved 2 slots: Propulsion x1, Utility x1 12436 | -5/Factory | Discovered new exit (range 19) 12465 | -5/Factory | Build established: Hacker-Scout 12669 | -5/Factory | Lost 3 parts (1p1n1w) 12874 | -5/Factory | Identified exit to Upper Caves 12986 | -5/Factory | Build established: Scout 13440 | -5/Factory | Entered another Factory area 13440 | -4/Factory | Evolved 2 slots: Power x1, Weapon x1 13657 | -4/Factory | Repaired Imp. Particle Charger 14219 | -4/Factory | Spotted B-86 Titan 14313 | -4/Factory | Build established: Scavenger-Mutant 14652 | -4/Factory | Discovered new exit (range 11) 14668 | -4/Factory | Entered Extension 15216 | -4/Extension | Spotted B-86 Titan 15219 | -4/Extension | Spotted B-86 Titan 15621 | -4/Extension | Energy Cycler disabled 15621 | -4/Extension | Rescued a captive Derelict 15622 | -4/Extension | Rescued a captive Derelict 15623 | -4/Extension | Rescued a captive Derelict 15623 | -4/Extension | Rescued a captive Derelict 15624 | -4/Extension | Rescued a captive Derelict 15626 | -4/Extension | Rescued a captive Derelict 15633 | -4/Extension | Rescued a captive Derelict 15993 | -4/Extension | Destroyed B-86 Titan 16028 | -4/Extension | Discovered new exit (range 19) 16053 | -4/Extension | Destroyed B-86 Titan 16071 | -4/Extension | Extracted ID and sensor layout for unrecognized location from A7's data core 16338 | -4/Extension | Build established: Scavenger-Tank 16431 | -4/Extension | Discovered new exit (range 20) 16433 | -4/Extension | Discovered new exit (range 19) 16457 | -4/Extension | Identified exit to Cetus 16461 | -4/Extension | Identified exit to Research 16570 | -4/Extension | Entered Cetus 16584 | -4/Cetus | Spotted Cetus Guard 16584 | -4/Cetus | Spotted Cetus Guard 16588 | -4/Cetus | Spotted Cetus Guard 16589 | -4/Cetus | Spotted Cetus Guard 16603 | -4/Cetus | Destroyed Cetus Guard 16606 | -4/Cetus | Destroyed Cetus Guard 16607 | -4/Cetus | Destroyed Cetus Guard 16608 | -4/Cetus | Destroyed Cetus Guard 16635 | -4/Cetus | Lost 4 parts (1p1u2w) 16700 | -4/Cetus | Discovered exit to Research (range 19) 17141 | -4/Cetus | Discovered new exit (range 20) 17170 | -4/Cetus | Identified exit to Archives 17201 | -4/Cetus | Spotted Cetus Guard 17202 | -4/Cetus | Spotted Cetus Guard 17230 | -4/Cetus | Entered Archives 17333 | -4/Archives | Unable to access archive contents 17344 | -4/Archives | Discovered new exit (range 20) 17350 | -4/Archives | Unable to access archive contents 17374 | -4/Archives | Identified exit to Hub_04(d) 17400 | -4/Archives | Discovered exit to Hub_04(d) (range 20) 17405 | -4/Archives | Unable to access archive contents 17422 | -4/Archives | Discovered exit to Research (range 20) 17428 | -4/Archives | Unable to access archive contents 17615 | -4/Archives | Entered Hub_04(d) 17617 | -4/Hub_04(d) | Discovered exit to Research (range 11) 17981 | -4/Hub_04(d) | Network Hub disabled 18011 | -4/Hub_04(d) | Spotted Lightning 18016 | -4/Hub_04(d) | Spotted Lightning 18028 | -4/Hub_04(d) | Spotted Lightning 18047 | -4/Hub_04(d) | System corruption reached 10% 18059 | -4/Hub_04(d) | Destroyed Lightning 18073 | -4/Hub_04(d) | Destroyed Lightning 18093 | -4/Hub_04(d) | Destroyed Lightning 18103 | -4/Hub_04(d) | Found Prototype Processor 18103 | -4/Hub_04(d) | Identified Exp. Targeting Computer 18114 | -4/Hub_04(d) | Lost 5 parts (1p2u2w) 18132 | -4/Hub_04(d) | Found Prototype Energy Cannon 18132 | -4/Hub_04(d) | Identified EMDS 18169 | -4/Hub_04(d) | Found Exp. Targeting Computer 18172 | -4/Hub_04(d) | Found Prototype Device 18172 | -4/Hub_04(d) | Identified Exp. Phase Shifter 18207 | -4/Hub_04(d) | Spotted Lightning 18207 | -4/Hub_04(d) | Spotted Lightning 18212 | -4/Hub_04(d) | Spotted Lightning 18224 | -4/Hub_04(d) | Destroyed Lightning 18261 | -4/Hub_04(d) | Lost 3 parts (1p2n) 18295 | -4/Hub_04(d) | Core integrity fell below 50% 18301 | -4/Hub_04(d) | Found Prototype Device 18307 | -4/Hub_04(d) | System corruption reached 30% 18332 | -4/Hub_04(d) | Entered Research 18332 | -3/Research | Evolved 2 slots: Power x1, Propulsion x1 18338 | -3/Research | Discovered new exit (range 5) 18361 | -3/Research | Lost 10 parts (1p4n5u) 18619 | -3/Research | Identified EM Dispersion Field 19222 | -3/Research | Build established: Scavenger-Mutant 19253 | -3/Research | Garrison activated, responded to threat 19484 | -3/Research | Lost 4 parts (2u2w) 19555 | -3/Research | Garrison activated, responded to threat 19573 | -3/Research | System corruption reached 10% 19711 | -3/Research | Discovered new exit (range 4) 20219 | -3/Research | Lost 8 parts (2p2n2u2w) 20332 | -3/Research | First assault squad dispatched 20344 | -3/Research | Entered Testing 20345 | -3/Testing | Maximum security lockdown engaged 20467 | -3/Testing | Found Prototype Ballistic Cannon 20467 | -3/Testing | Identified Omega Cannon 20485 | -3/Testing | Spotted Executioner 20526 | -3/Testing | Released all parts (11) 20529 | -3/Testing | Core integrity fell below 50% 20534 | -3/Testing | Destroyed 7 combat bots 20557 | -3/Testing | Lost 10 parts (2p3n2u3w) 20587 | -3/Testing | Core integrity fell below 20% 20600 | -3/Testing | Destroyed by X-82 Rainmaker via exploding Antimatter Diverter Last Messages --------------- 20532_ P-80 Master heat short circuits Broken Gamma Rifle. 20532_ P-80 Master resets G-73 Enforcer, system corruption cleaned. 20533_ P-80 Master heat spikes uncontrollably. 20544_ The unstable cave ceiling collapses. 20545_ ALERT: Assault forces dispatched. 20550_ Acquired Prototype Storage. 20550_ Identified Adv. Energy Well. 20552_ Acquired Prototype Storage. 20552_ Identified Exp. Energy Well. 20553_ Dropped Adv. Energy Well. 20555_ Extracted 15 energy. 20556_ Extracted 3 energy. 20568_ W-44 Eye sends out distress signal. 20582_ System corrupted: Substantial component data lost. 20586_ Penetrated by Slug. 20586_ Slug penetrates Wall. 20593_ Knocked back. 20600_ G-73 Enforcer destroyed. 20600_ Antimatter Diverter explodes. 20600_ X-82 Rainmaker destroyed. Map ----- +----------------------------------------------------+ | | | | | | | | | | | | | | | | | ?????????????????????????????????????????????????? | | ?????????????????????????????????????????????????? | | ?????????????????????????????????????????????????? | | ?????????????????????????????????????????????????? | | ?????????????????????????????????????????????????? | | ?????????????????????????????????????????????????? | | ?????????????????????????????????????????????????? | | ?????????????????????????????????????????????????? | | ?????????????????????????????????????????????????? | | ?????????????????????????????????????????????????? | | ?????????????????????????????????????????????????? | | ?????????????????????????????????????????????????? | | ?????????????????????????????????????????????????? | | ??????????????????????g??????????????????????????? | | ?????????????????????????????????????????????????? | | ?????????????????????????????????????????????????? | | ???????###+####;;;#;###;###??????????????????????? | | ???????# ! ; p @#??????????????????????? | | ????#### %x; #??????????????????????? | | ????# #% #??????????????????????? | | ????# x* #??????????????????????? | | ????# g# #??????????????????????? | | ????#### g# #??????????????????????? | | ########C h#;;;##;###;####??????????????????????? | | """"" b;#;##;#??##??????????????????????????? | | """F"" g# #??????????????????????????????? | | """ "" h [ #??????????????????????????????? | | #g E #??????????????????????????????? | | #### b #??????????????????????????????? | | #??# h ##?????????????????????????????? | | #??# g " #????????????????????????????? | | # g #"##########???????????????????? | | #i l ## #???????????????????? | | ?+ C ## #???????????????????? | | ?# g ## #???????????????????? | | ######?# ## """ """ ##??????????????????? | | "" #??????# ## """ """ ""??????????????????? | | "" ##########/#### """ """ ""#?????????????????? | | "" / ""#?????????????????? | | # """ """ S#?????????????????? | | / """ """ ""#?????????????????? | | # """ """ ""#?????????????????? | +----------------------------------------------------+ Best States ------------- Heat Dissipation 93 Coolant Potential 100 Energy Generation 54 Energy Capacity 1100 Matter Stores 300 Matter Capacity 300 Sight Range 20 Robot Scan Range 13 Terrain Scan Range 14 Terrain Scan Density 410 Jamming Range 12 Base Temperature (-) 100 Corruption Prevention 20 Armor Coverage 2400 Resistance: KI 40 Resistance: TH 25 Resistance: EM 75 Propulsion Shielding 66 Utility Shielding 90 Weapon Shielding 66 Weapon Cycling 30 Melee Speed Boost 20 Phase Shifting 20 Evasion (%) 65 Targeting Accuracy 24 Melee Accuracy 6 Launcher Accuracy 30 Target Analysis 8 Core Analysis 10 Recoil Reduction 5 Particle Charging 20 Kinecelleration 30 Offensive Hacking 14 Defensive Hacking 10 Item Schematics ----------------- None Robot Schematics ------------------ None Fabricated ------------ G-50 Soldier | x3 | -6/Factory | Preloaded Alien Tech Used ----------------- None Achievements -------------- Can't Touch This Hunted My Command Is Your Wish Oh No You Don't! Turtlemind Challenges ------------ None Game ------ Seed PhasingMeleeStorage Manual? 0 Play Time 04:45:26 Cumulative 147.5 hours Start 2020.07.12 @ 15:15:21 End 2020.07.20 @ 21:20:59 Sessions 7 Manual Loads 0 Difficulty Rogue Special Mode None Game No. 48 Rogue 48 Adventurer 0 Explorer 0 Win Type - Total 3 Types 3/0/0/0/0/0/0 Lore% 55 Gallery% 61 Achievement% 40 Wizard Run 0 Options --------- ASCII 0 Keyboard 1 Movement Vi Keybinds 0 Fullscreen 2 Font 18/Terminus Map View 76x50 Tactical HUD 1 Map Filters NONE Filters NONE Steam 1 RUN: 261cb6b6-c83b-4ad7-ad27-d1accd1e7bc9